Cogmind - Beta 15 @@@ ROGUE MODE // 2025.07.07 @ 13:55:00 Player: Skergy Result: Destroyed by H-66 Slayer with Gauss Rifle Performance ------------- Evolutions (4) 2000 Regions Visited (6) 1200 Robots Destroyed (34) 170 Value Destroyed (1018) 1018 Prototype IDs (5) 100 Alien Tech Used (0) 0 Bonus (2440) 2440 TOTAL SCORE: 6928 Bonus ------- Follower Combat Kills 140 Delivered SUBCON Basin 2000 Registered with UFD 300 Cogmind --------- Core Integrity 0/850 Matter 281/300 Energy 40/100 System Corruption 2% Temperature Warm (162) Movement Walking (180) Ox1 Location -6/Extension Parts ------- > --- POWER (1) -------- (None) > --- PROPULSION (4) --- Improved VSS Leg Improved VSS Leg > --- UTILITY (8) ------ High-capacity Storage Unit Enhanced Optical Array > --- WEAPON (2) ------- Companion Sword > --- INVENTORY (20) --- Advanced Heat Sink Energy Well (350) High-capacity Matter Pod (200) Advanced Sensor Array Gauss Rifle Coil Gun Flak Cannon Mini Assault Cannon Heavy Flak Cannon Improved Proton Missile Launcher Datajack Power Sword Power Sword Power Sword Peak State ------------ > --- POWER ------------ Cooled Deuterium Engine > --- PROPULSION ------- Armored Treads Armored Treads Armored Treads Armored Treads > --- UTILITY ---------- Scrap Suit Advanced Heat Sink High-capacity Storage Unit Enhanced Optical Array IFF Parser Improved Heavy Armor Plating > --- WEAPON ----------- Chainsword Companion Sword > --- INVENTORY -------- Cooled Deuterium Engine Armored Treads Armored Treads Improved VSS Leg Energy Well High-capacity Matter Pod Improved Light Armor Plating Hacking Suite Heavy Laser Gauss Rifle Coil Gun Battle Cannon Flak Cannon Mini Assault Cannon Heavy Flak Cannon EMP Blaster Improved Proton Missile Launcher Dirty Datajack Datajack [Rating: 68] Favorites ----------- Power Ion Engine Engine Ion Engine Propulsion Light Treads Treads Light Treads Leg Aluminum Leg Wheel Subdweller Monowheel Flight Unit VTOL Module Utility High-capacity Storage Unit Device V3-11A's Pendant Storage High-capacity Storage Unit Processor Enhanced Optical Array Hackware Hacking Suite Protection Improved Heavy Armor Plating Weapon Datajack Energy Gun Small Laser Energy Cannon Light EM Pulse Cannon Ballistic Gun Assault Rifle Ballistic Cannon Battle Cannon Impact Weapon Maul Slashing Weapon Companion Sword Special Melee Weapon Datajack Build | -11 -10 -10 -9 -9 -6 -6 ------- Run | Yrd Mat Sub Rec Scr Fac Ext Slots Evolved 8 | . . . . . 8 . Power . | . . . . . . . Propulsion 2 | . . . . . 2 . Utility 6 | . . . . . 6 . Weapon . | . . . . . . . Parts Attached 67 | 6 11 9 . 9 19 13 Power 5 | 1 1 . . 1 1 1 Engine 5 | 1 1 . . 1 1 1 Core . | . . . . . . . Reactor . | . . . . . . . Propulsion 25 | 2 5 3 . 4 5 6 Treads 14 | 2 1 . . 2 5 4 Leg 6 | . 3 . . 1 . 2 Wheel 4 | . 1 3 . . . . Hover . | . . . . . . . Flight 1 | . . . . 1 . . Utility 20 | 1 3 1 . 1 11 3 Device 9 | . 1 1 . 1 5 1 Storage 4 | 1 2 . . . 1 . Processor 3 | . . . . . 3 . Hackware 1 | . . . . . . 1 Protection 3 | . . . . . 2 1 Artifact . | . . . . . . . Weapon 17 | 2 2 5 . 3 2 3 Energy Gun 2 | 1 . 1 . . . . Energy Cannon 2 | . 1 1 . . . . Ballistic Gun 3 | 1 . . . 1 . 1 Ballistic Cannon 4 | . 1 1 . . 1 1 Launcher . | . . . . . . . Special Weapon . | . . . . . . . Impact Weapon 1 | . . . . 1 . . Slashing Weapon 3 | . . . . 1 1 1 Piercing Weapon . | . . . . . . . Special Melee Weapon 2 | . . 2 . . . . Unidentified Prototypes 4 | . . 1 . 1 2 . Corrupted Parts 1 | . 1 . . . . . System Corruption 3 | . 3 . . . . . Parts Lost 29 | . 1 1 . . 9 18 Power 3 | . . . . . 1 2 Propulsion 14 | . 1 1 . . 4 8 Utility 10 | . . . . . 4 6 Weapon 2 | . . . . . . 2 Highest Loss Streak 14 | . 1 1 . . 6 14 To Critical Strikes 1 | . . . . . . 1 Average Backups 15 | 2 12 15 5 16 16 19 Power 1 | . 1 1 1 . . . Propulsion 1 | 1 2 2 . 1 1 3 Utility 6 | . 5 6 1 8 4 4 Weapon 4 | . 2 4 1 4 8 8 Tool/Special . | . . . . . . . Unused Backups 37 | . 2 16 . 4 3 12 Power 3 | . . 2 . 1 . . Propulsion 1 | . . 1 . . . . Utility 14 | . 1 6 . 2 2 3 Weapon 18 | . 1 7 . . 1 9 Tool/Special 1 | . . . . 1 . . Average Slot Usage (%) 85 | . 97 80 94 87 77 82 Engine 12 | . 14 14 14 14 4 5 Treads 16 | . 15 19 . 12 17 22 Leg 3 | . 11 2 . 2 1 . Wheel 4 | . . 5 28 5 . . Device 12 | . 11 13 14 10 15 14 Storage 12 | . 14 14 14 14 7 6 Processor 1 | . . . . . 15 6 Energy Cannon 2 | . 10 1 2 . . . Ballistic Gun 2 | . 12 . . 1 . . Ballistic Cannon 4 | . 1 1 8 11 . . Slashing Weapon 2 | . . . . 2 11 10 Special Melee Weapon 6 | . . 7 12 11 . . Peak Build Rating 68 | 6 14 35 35 27 68 68 Average Rating 20 | 4 11 13 26 16 50 60 On Entrance 22 | . 6 13 32 12 23 68 Naked Turns . | . . . . . . . Heaviest Build 85 | 13 53 57 57 56 79 85 Greatest Support 89 | 40 40 40 40 55 89 80 Greatest Overweight (x) 16 | . 5 2 1 16 16 2 Average Overweight (x) 1 | . 1 1 1 1 1 . Largest Inventory Capacity 20 | 8 20 20 20 20 20 20 Average Capacity 19 | 7 19 20 20 20 20 20 Most Carried 20 | 4 20 20 20 20 20 20 Average Carried 17 | 2 13 19 16 17 16 19 Final Capacity 20 | 8 20 20 20 20 20 20 Final Carried 20 | 4 20 20 11 18 20 14 Class Distribution -------------------- 91% | Mutant 7% | Derelict-Mutant Dominant Class ---------------- Mutant | -10/Materials Mutant | -10/Subcaves Mutant | -9/Recycling Mutant | -9/Scraptown Mutant | -6/Factory Mutant | -6/Extension Resources | -11 -10 -10 -9 -9 -6 -6 ----------- Run | Yrd Mat Sub Rec Scr Fac Ext Matter Collected 1835 | 226 258 301 52 230 562 206 Remotely . | . . . . . . . Salvage Created 1303 | . 456 22 . . 525 300 Parts 76 | . 43 . . . 22 11 Haulers Intercepted 2 | . . . . . 2 . Recyclers Shooed 2 | . 1 . . . 1 . Parts Field Recycled . | . . . . . . . Retrieved Matter . | . . . . . . . Parts Self-Destructed 5 | . . 5 . . . . Prevented . | . . . . . . . Kills | -11 -10 -10 -9 -9 -6 -6 ------- Run | Yrd Mat Sub Rec Scr Fac Ext Combat Hostiles Destroyed 26 | . 15 . . . 6 5 Melee 11 | . . . . . 6 5 Guns 10 | . 10 . . . . . Cannons 4 | . 4 . . . . . AOE 1 | . 1 . . . . . Classes Destroyed 9 | . 5 1 . . 3 . Builder 1 | . 1 . . . . . Hauler 2 | . . . . . 2 . Recycler 1 | . 1 . . . . . Turret 1 | . . 1 . . . . Watcher 3 | . 3 . . . . . Swarmer 11 | . 11 . . . . . Grunt 6 | . 4 . . . 1 1 Sentry 4 | . . . . . 1 3 Hunter 4 | . . . . . 4 . Thug 1 | . . . . . . 1 Best Kill Streak 5 | . 5 1 . . 2 3 Combat Bots Only 4 | . 4 . . . 2 3 Max Kills in Single Turn 2 | . 2 1 . . 1 1 Gunslinging . | . . . . . . . Exploded 1 | . 1 . . . . . Melee 1 | . . . . . 1 1 Uniques/NPCs Destroyed . | . . . . . . . Combat | -11 -10 -10 -9 -9 -6 -6 -------- Run | Yrd Mat Sub Rec Scr Fac Ext Hostile Shots Fired 829 | . 68 64 . . 282 415 Missed 285 | . 21 27 . . 82 155 Hits 544 | . 47 37 . . 200 260 Projectile 544 | . 47 37 . . 200 260 Critical Strikes 7 | . . . . . 2 5 Part Disruptions 2 | . . . . . 2 . Damage Taken 6943 | . 495 435 . . 2814 3199 Core 1006 | . 73 83 . . 462 388 Absorbed by Shields . | . . . . . . . Regen/Repaired (Parts) 46 | . . . . . 36 10 Core Remaining (%) 68 | 100 . . . 37 . . Volleys Fired 54 | . 41 3 . . 9 1 Largest 2 | . 2 1 . . 2 2 Hottest 80 | . 76 80 . . 70 78 Shots Fired 105 | . 82 4 . . 17 2 Gun 76 | . 66 . . . 9 1 Cannon 29 | . 16 4 . . 8 1 Launcher . | . . . . . . . Special . | . . . . . . . Kinetic 59 | . 40 . . . 17 2 Thermal 29 | . 26 3 . . . . Explosive . | . . . . . . . Electromagnetic 17 | . 16 1 . . . . Robot Hit Streak 11 | . 8 2 . . 11 1 Robot Miss Streak 4 | . 4 1 . . 3 1 Penetration Max . | . . . . . . . Secondary Targets 1 | . 1 . . . . . Max Gunslinging Chain 1 | . 1 . . . . . Shots Hit Robots 130 | . 45 4 2 . 49 30 Core Hits 46 | . 23 1 . . 14 8 Critical Kills 1 | . . . . . 1 . Critical Parts Destroyed 1 | . 1 . . . . . Critical Strikes 9 | . 1 . . . 6 2 Destroy 2 | . 1 . . . 1 . Blast 1 | . . . . . 1 . Sever 2 | . . . . . 2 . Melee Attacks 82 | . . 2 2 . 47 31 Impact . | . . . . . . . Slashing 67 | . . . . . 46 21 Piercing 3 | . . 2 . . 1 . Sneak Attacks 13 | . . . . . 1 12 Combat Hostiles . | . . . . . . . Follow-up Attacks 12 | . . . . . 9 3 Damage Inflicted 3329 | . 779 58 . . 1693 799 Guns 626 | . 493 . . . 133 . Cannons 391 | . 182 55 . . 128 26 Explosions 100 | . 100 . . . . . Melee 2184 | . . 3 . . 1408 773 Ramming 28 | . 4 . . . 24 . Kinetic 577 | . 290 . . . 261 26 Thermal 358 | . 303 55 . . . . Explosive . | . . . . . . . Electromagnetic 182 | . 182 . . . . . Impact . | . . . . . . . Slashing 2178 | . . . . . 1405 773 Piercing 6 | . . 3 . . 3 . Highest Corruption 3 | . 3 3 3 . 2 2 Average Corruption 2 | . 3 3 3 . 1 2 Corruption Purged . | . . . . . . . Corruption Blocked . | . . . . . . . Effects 97 | . 19 63 3 . 5 7 Message Errors 22 | . 6 13 . . 1 2 Matter Fused 29 | . 5 19 2 . 2 1 Heat Flow Errors 9 | . . 6 . . 1 2 Energy Discharges 15 | . 2 12 . . . 1 Parts Fused 2 | . 1 1 . . . . Data Loss (minor) 12 | . 2 9 . . 1 . Data Loss (major) 3 | . 1 . 1 . . 1 Misfires 3 | . 2 1 . . . . Alerts 2 | . . 2 . . . . Overload Shots . | . . . . . . . Overflow Damage 94 | . . 21 . . 73 . Projectiles 22 | . . 21 . . 1 . Explosions . | . . . . . . . Melee 72 | . . . . . 72 . Knockbacks 2 | . . . . . 2 . Impact 1 | . . . . . 1 . Kinetic 1 | . . . . . 1 . Secondary . | . . . . . . . Self-Inflicted Damage . | . . . . . . . Shots . | . . . . . . . Rammed 1 | . . . . . 1 . Targets Rammed 2 | . 1 . . . 1 . Kicked 1 | . 1 . . . . . Crushed . | . . . . . . . Highest Temperature 293 | . 102 254 . . 133 293 Average Temperature 85 | . 63 96 . . 82 130 Received Heat Transfer 1377 | . 138 156 . . 165 918 Siege Activations . | . . . . . . . Martial Activations . | . . . . . . . Shielding Activations . | . . . . . . . Robots Disrupted . | . . . . . . . Combat Hostiles . | . . . . . . . Robots Corrupted . | . . . . . . . Combat Hostiles . | . . . . . . . Parts Fried . | . . . . . . . Impact Corruptions . | . . . . . . . Robots Melted . | . . . . . . . Combat Hostiles . | . . . . . . . Parts Melted . | . . . . . . . Heat Transferred 674 | . 600 74 . . . . Parts Sabotaged . | . . . . . . . Parts Stolen . | . . . . . . . Parts Stripped . | . . . . . . . Power Chain Reactions 1 | . 1 . . . . . Alert | -11 -10 -10 -9 -9 -6 -6 ------- Run | Yrd Mat Sub Rec Scr Fac Ext Maximum Alert Level . | . . . . . . . Low Security (%) 100 | 100 100 . 100 . 100 100 Level 1 . | . . . . . . . Level 2 . | . . . . . . . Level 3 . | . . . . . . . Level 4 . | . . . . . . . Level 5 . | . . . . . . . High Security . | . . . . . . . Max Security . | . . . . . . . Peak Influence 122 | . 113 . 35 . 64 122 Initial 22 | . . . 22 . . 5 Average 26 | . 37 . 4 . 9 41 Influence Increases 1119 | . 421 215 21 . 174 288 Destroy 0b10 Robot/C 660 | . 300 80 . . 120 160 Destroy 0b10 Robot/NC 45 | . 25 . . . 10 10 Destroy Leader 130 | . 56 . . . 42 32 Allied During Kill 49 | . . 15 . . . 34 Successful Hack 69 | . 20 . 21 . . 28 Disable Machine 15 | . 15 . . . . . Destroy Structure 16 | . 5 . . . 2 9 Lose Combat Pursuer 135 | . . 120 . . . 15 Influence Decreases 1119 | . 421 167 69 . 162 300 Entered New Map 33 | . . . 26 . . 7 Time Decay 792 | . 411 7 43 . 152 179 Lost Part 50 | . 10 . . . 10 30 Lost Ally 244 | . . 160 . . . 84 Squads Dispatched 7 | . 2 . . . 5 . Investigation 1 | . 1 . . . . . Extermination 1 | . . . . . 1 . Reinforcement 2 | . 1 . . . 1 . Assault . | . . . . . . . Garrison 3 | . . . . . 3 . Intercept . | . . . . . . . Searches Triggered . | . . . . . . . Construction Impeded . | . . . . . . . Haulers Reinforced 1 | . . . . . 1 . Active Scanning Responses . | . . . . . . . Cargo Convoy Interrupts . | . . . . . . . Stealth | -11 -10 -10 -9 -9 -6 -6 --------- Run | Yrd Mat Sub Rec Scr Fac Ext Distress Signals 4 | . 3 . . . . 1 Communications Jammed . | . . . . . . . Distress Signals . | . . . . . . . Times Spotted 66 | . 25 15 . . 11 15 Peak Tracking Total 6 | . 6 5 . . 3 6 Tactical Retreats 5 | . . 4 . . . 1 Traps | -11 -10 -10 -9 -9 -6 -6 ------- Run | Yrd Mat Sub Rec Scr Fac Ext Traps Triggered 4 | . 2 2 . . . . Indirectly . | . . . . . . . Trap Hack Attempts . | . . . . . . . Triggered . | . . . . . . . Disarmed . | . . . . . . . Reprogrammed 1 | . . . . . . 1 Reused . | . . . . . . . Traps Extracted . | . . . . . . . Installed . | . . . . . . . Triggered . | . . . . . . . Machines | -11 -10 -10 -9 -9 -6 -6 ---------- Run | Yrd Mat Sub Rec Scr Fac Ext Machines Disabled 2 | . 1 1 . . . . Max in Single Turn 1 | . 1 1 . . . . Machines Repaired . | . . . . . . . Machines Dismantled . | . . . . . . . Machines Sabotaged . | . . . . . . . Overloaded Fab Kills . | . . . . . . . Hacking | -11 -10 -10 -9 -9 -6 -6 --------- Run | Yrd Mat Sub Rec Scr Fac Ext Machines Accessed 24 | . 6 3 6 4 . 5 Terminals 15 | . 5 . 5 . . 5 Fabricators . | . . . . . . . Repair Stations . | . . . . . . . Recycling Units 2 | . 1 . 1 . . . Scanalyzers . | . . . . . . . Garrison Access . | . . . . . . . Total Hacks 68 | . 17 6 19 9 . 17 Successful 46 | . 9 6 9 9 . 13 Failed 22 | . 8 . 10 . . 4 Catastrophic . | . . . . . . . Database Lockouts . | . . . . . . . Manual 38 | . 16 . 12 . . 10 Terminals 51 | . 16 . 18 . . 17 Fabricators . | . . . . . . . Repair Stations . | . . . . . . . Recycling Units 2 | . 1 . 1 . . . Scanalyzers . | . . . . . . . Garrison Access . | . . . . . . . Terminal Hacks 30 | . 1 6 4 9 . 10 Record 17 | . . 4 . 8 . 5 Open Door 3 | . . 1 . 1 . 1 Branch Access Points 1 | . . . . . . 1 Alert Level 1 | . . . 1 . . . Reprogram Traps 1 | . . . . . . 1 Security Status 1 | . . . . . . 1 Recall Investigation 1 | . 1 . . . . . Recall Assault 1 | . . . . . . 1 Zone Layout 3 | . . . 3 . . . Release Object 1 | . . 1 . . . . Fabricator Hacks . | . . . . . . . Repair Station Hacks . | . . . . . . . Recycling Unit Hacks . | . . . . . . . Scanalyzer . | . . . . . . . Garrison Access Hacks . | . . . . . . . Unauthorized Hacks 16 | . 8 . 5 . . 3 Terminals 15 | . 7 . 5 . . 3 Track 1 | . . . . . . 1 Assimilate 3 | . 3 . . . . . Botnet 10 | . 3 . 5 . . 2 Operators 1 | . 1 . . . . . Fabricators . | . . . . . . . Repair Stations . | . . . . . . . Recycling Units 1 | . 1 . . . . . Reject 1 | . 1 . . . . . Scanalyzers . | . . . . . . . Garrison Access . | . . . . . . . Data Cores Recovered 1 | . . . . . . 1 Used . | . . . . . . . Hacking Detections 15 | . 5 . 6 . . 4 Full Trace Events . | . . . . . . . Feedback Events . | . . . . . . . Feedback Blocked . | . . . . . . . Robot Schematics Acquired . | . . . . . . . Robots Built . | . . . . . . . Authchips . | . . . . . . . Time . | . . . . . . . Total Robot Build Rating . | . . . . . . . Part Schematics Acquired 3 | . . . . . 3 . Parts Built . | . . . . . . . Authchips . | . . . . . . . Time . | . . . . . . . Total Part Build Rating . | . . . . . . . Parts Repaired . | . . . . . . . Time . | . . . . . . . Parts Recycled . | . . . . . . . Recycled Matter . | . . . . . . . Retrieved Matter . | . . . . . . . Retrieved Components . | . . . . . . . Parts Scanalyzed . | . . . . . . . Part Schematics Acquired . | . . . . . . . Parts Damaged . | . . . . . . . Bothacking | -11 -10 -10 -9 -9 -6 -6 ------------ Run | Yrd Mat Sub Rec Scr Fac Ext Used RIF Installer . | . . . . . . . Robots Hacked . | . . . . . . . Non-combat . | . . . . . . . Combat . | . . . . . . . Robot Hacks Applied . | . . . . . . . Relay Couplers Released . | . . . . . . . Fabnet Peak Effective % . | . . . . . . . Robots Rewired 6 | . . . . . . 6 Allies Hacked . | . . . . . . . Hacks Repelled . | . . . . . . . Allies | -11 -10 -10 -9 -9 -6 -6 -------- Run | Yrd Mat Sub Rec Scr Fac Ext Total Allies 24 | . . 16 . . . 8 Largest Group 8 | . . 8 . . . 5 Highest-Rated Group 152 | . . 152 . . . 146 Highest-Rated Ally 39 | . . 19 . . . 39 Total Orders 2 | . . . . . 2 . EXPLORE 1 | . . . . . 1 . RETURN 1 | . . . . . 1 . Ally Attacks 111 | . . 43 . . . 68 Total Damage 2093 | . . 840 . . . 1253 Kills 9 | . . 3 . . . 6 Allies Corrupted . | . . . . . . . Allies Melted . | . . . . . . . Intel | -11 -10 -10 -9 -9 -6 -6 ------- Run | Yrd Mat Sub Rec Scr Fac Ext Active Infowar (turns) 1027 | . . . . . 491 536 Optics 1027 | . . . . . 491 536 IFF 729 | . . . . . 206 523 Robot Analysis Total . | . . . . . . . Derelict Logs Recovered 6 | . . 3 . 3 . . Drone Launches 2 | . . . . . 2 . Drone Recoveries 1 | . . . . . 1 . Exploration | -11 -10 -10 -9 -9 -6 -6 ------------- Run | Yrd Mat Sub Rec Scr Fac Ext Turns Passed 10000 | 69 1644 3474 348 2922 1007 536 Spaces Moved 4844 | 37 630 1810 273 1516 361 217 Core 88 | 2 . . . 66 20 . Treads 2469 | 35 375 749 . 753 341 216 Legs 486 | . 204 . . 281 . 1 Wheels 1801 | . 51 1061 273 416 . . Hover . | . . . . . . . Flight . | . . . . . . . Fastest Speed 50 | 50 130 120 120 120 170 167 Average Speed 192 | 154 229 184 120 190 230 201 Slowest Speed 850 | 160 470 320 120 850 850 330 Overloaded Moves . | . . . . . . . Propulsion Burnouts . | . . . . . . . Robots Hopped . | . . . . . . . Potential Cave-ins . | . . . . . . . Cave-ins Triggered . | . . . . . . . Exploration Rate (%) 53 | 3 79 91 52 91 17 41 Regions Visited 6 Branch Regions 4 Pre-discovered Areas 1 | . . . . 1 . . Known Exits Taken . | . . . . . . . Unknown Exits Taken 6 | 1 1 1 1 1 1 . Scrap Searched 12 | . . 9 . 3 . . Spaces Dug 2 | . . . . . 2 . Terrain Destroyed 6 | . 3 . . . 3 . Melee 2 | . . . . . 2 . Projectile 1 | . . . . . 1 . AOE 3 | . 3 . . . . . Terrain Rammed . | . . . . . . . Walls Destroyed . | . . . . . . . Machines Disabled . | . . . . . . . Actions | -11 -10 -10 -9 -9 -6 -6 --------- Run | Yrd Mat Sub Rec Scr Fac Ext Total 5341 | 46 750 1955 291 1555 463 281 Wait 132 | . 34 86 5 . 6 1 Move 4838 | 36 629 1809 272 1515 360 217 Hop . | . . . . . . . Pick Up 74 | 4 19 12 6 13 15 5 Fast Attach 40 | 6 8 5 . 6 9 6 Attach 24 | . 2 2 . 4 9 7 Detach 20 | . 4 3 . 8 4 1 Swap 26 | . 2 3 4 1 7 9 Drop 62 | . 10 29 2 8 6 7 Fire 54 | . 41 3 . . 9 1 Melee 68 | . . 2 2 . 37 27 Ram . | . . . . . . . Kick 1 | . 1 . . . . . Crush 1 | . . . . . 1 . Escape Stasis . | . . . . . . . Rewire 1 | . . 1 . . . . Trap . | . . . . . . . Miscellaneous . | . . . . . . . Route ------- -11/Scrapyard -10/Materials (discovered 4 exits: [*Mat x2] / [*Min] / *Sub) -10/Subcaves (discovered 3 exits: [*Mat x2] / *Rec) -9/Recycling -9/Scraptown (discovered 2 exits: [*Fac x2]) -6/Factory (discovered 2 exits: Fac / *Ext) -6/Extension (discovered 1 exit: Cet) History --------- Turn | Location | Event 19 | -11/Scrapyard | Discovered new exit (range 16) 70 | -11/Scrapyard | Entered Materials 326 | -10/Materials | Build established: Mutant 424 | -10/Materials | Discovered new exit (range 16) 823 | -10/Materials | Discovered new exit (range 11) 870 | -10/Materials | Derelicts attacked the area 1299 | -10/Materials | Discovered new exit (range 5) 1452 | -10/Materials | Discovered new exit (range 9) 1714 | -10/Materials | Entered Subcaves 1726 | -10/Subcaves | A swath of the cavern ceiling suddenly collapsed 1815 | -10/Subcaves | Learned Materials stockpile data 1954 | -10/Subcaves | Visited triangular shrine 1969 | -10/Subcaves | Found Prototype Device 1969 | -10/Subcaves | Identified V3-11A's Pendant 1974 | -10/Subcaves | Befriended Subdweller 2002 | -10/Subcaves | Shifting Twisted Machinery released Battle Rifle 2007 | -10/Subcaves | Shifting Twisted Machinery released Shrapnel Trap 2009 | -10/Subcaves | Discovered new exit (range 10) 2164 | -10/Subcaves | Befriended Subdweller 2164 | -10/Subcaves | Befriended Subdweller 2249 | -10/Subcaves | Befriended Subdweller 2413 | -10/Subcaves | A swath of the cavern ceiling suddenly collapsed 2637 | -10/Subcaves | Learned Materials emergency access door positions 2864 | -10/Subcaves | Befriended Subdweller 2874 | -10/Subcaves | Befriended Subdweller 2996 | -10/Subcaves | Shifting Twisted Machinery released Sub. Beam Cannon 3002 | -10/Subcaves | Shifting Twisted Machinery released Sub. Monowheel 3005 | -10/Subcaves | Discovered new exit (range 9) 3109 | -10/Subcaves | Ambushed by Subdweller buried in earth 3114 | -10/Subcaves | Befriended Subdweller 3189 | -10/Subcaves | Befriended Subdweller 3236 | -10/Subcaves | Visited Clippyterm 3240 | -10/Subcaves | Learned Factory emergency access door positions 3544 | -10/Subcaves | Befriended Subdweller 3549 | -10/Subcaves | Befriended Subdweller 3644 | -10/Subcaves | Shifting Twisted Machinery released Sub. Power Source 3829 | -10/Subcaves | Befriended Subdweller 3834 | -10/Subcaves | Befriended Subdweller 3914 | -10/Subcaves | Befriended Subdweller 3919 | -10/Subcaves | Befriended Subdweller 4104 | -10/Subcaves | Befriended Subdweller 4640 | -10/Subcaves | Found SUBCON Basin 5109 | -10/Subcaves | Ambushed by Subdweller buried in earth 5114 | -10/Subcaves | Befriended Subdweller 5119 | -10/Subcaves | Lost 3 allies 5130 | -10/Subcaves | Discovered new exit (range 8) 5136 | -10/Subcaves | Core integrity fell below 50% 5180 | -10/Subcaves | Lost 6 allies 5188 | -10/Subcaves | Entered Recycling 5393 | -9/Recycling | Scanned before Scraplab entrance 5413 | -9/Recycling | Entered Scraplab 5533 | -9/Recycling | Discovered new exit (range 3) 5536 | -9/Recycling | Entered Scraptown 5536 | -9/Scraptown | System corruption cleaned by C-Scrubber 5588 | -9/Scraptown | Visited Cave Peace 5597 | -9/Scraptown | Visited Assassins FH 5635 | -9/Scraptown | Visited SPCMW 5650 | -9/Scraptown | Visited Spacefarers 5743 | -9/Scraptown | Scanned Subdweller tech in exchange for log data 5745 | -9/Scraptown | Learned location of Zion (-7) 5746 | -9/Scraptown | Learned location of 1 exit from Factory 5747 | -9/Scraptown | Learned location of 2 exits from Lower Caves 5811 | -9/Scraptown | Discovered new exit (range 11) 5938 | -9/Scraptown | Delivered V3-11A's Pendant to T0-NE2 in exchange for information 6841 | -9/Scraptown | Visited UFD Registry 6841 | -9/Scraptown | Registered with UFD as "Hardspreader" 6867 | -9/Scraptown | Visited Shadow of the Wyrm 6903 | -9/Scraptown | Visited Awakened 7044 | -9/Scraptown | Visited IN-MT5's Study 7141 | -9/Scraptown | Visited DA-N13 Charitable Foundation 7150 | -9/Scraptown | Found DCF Scrap (30 items) 7224 | -9/Scraptown | Visited Derelict Rescue Squad 7296 | -9/Scraptown | Visited Science Testing Area 7347 | -9/Scraptown | Delivered Scrap Shield to a Scientist 7464 | -9/Scraptown | Build established: Derelict-Mutant 7519 | -9/Scraptown | Visited Scrap Suit Storage 7576 | -9/Scraptown | Visited Scrapoid Research Area 7659 | -9/Scraptown | Visited Junk Repository 7711 | -9/Scraptown | Visited Supply Room 7749 | -9/Scraptown | Visited Chapter 10 7826 | -9/Scraptown | Visited Sword Containment 7953 | -9/Scraptown | Found Scrap Suit 8156 | -9/Scraptown | Build established: Mutant 8170 | -9/Scraptown | Discovered new exit (range 3) 8458 | -9/Scraptown | Entered Factory 8458 | -6/Factory | Evolved 8 slots: Propulsion x2, Utility x6 8459 | -6/Factory | Identified exit to Factory 8790 | -6/Factory | Lost 6 parts (1p3n2u) 9046 | -6/Factory | Tech Extrapolator generated special schematic: Machine Rigger 9107 | -6/Factory | Garrison activated, responded to threat 9381 | -6/Factory | Discovered new exit (range 7) 9389 | -6/Factory | Core integrity fell below 50% 9465 | -6/Factory | Entered Extension 9589 | -6/Extension | Rescued a captive Derelict 9590 | -6/Extension | Rescued a captive Derelict 9726 | -6/Extension | Identified exit to Cetus 9916 | -6/Extension | Spotted B-75 Beast 9966 | -6/Extension | Spotted B-75 Beast 9993 | -6/Extension | Core integrity fell below 20% 10001 | -6/Extension | Destroyed by H-66 Slayer with Gauss Rifle Last Messages --------------- 09987_ Arm. Treads destroyed. 09987_ Penetrated by Slug. 09988_ Arm. Treads destroyed. 09988_ Penetrated by Slug. 09988_ IFF Parser destroyed. 09990_ B-75 Beast Imp. Medium Treads severed. 09990_ U-05 Engineer builds a Wall. 09991_ Dirty Datajack destroyed. 09992_ K0-882(l) knocked back. 09994_ U-05 Engineer builds a Wall. 09995_ Slug penetrates K0-882(l). 09995_ Knocked back. 09995_ Penetrated by Slug. 09996_ Acquired 6 matter. 09997_ B-75 Beast suffers critical hit (Burn). 09998_ K0-882(l) destroyed. 09999_ B-75 Beast suffers critical hit (Burn). 10000_ Arm. Treads destroyed. 10001_ System corrupted: Heat flow error (+150). 10001_ Imp. Heat Sink destroyed. Map ----- +----------------------------------------------------+ | # #??###??????##%#???# #??????????????????????? | | #???????????##[#???# #??????????????????????? | | #/##/######??????##!#???# #??????????????????????? | | # ^ [T #???????#%#???# #??????????????????????? | | # / ]==##??????# #???# #??????????????????????? | | # * / / %%##??????# #???# #??????????????????????? | | # // =%!%#??????# #???# #??????????????????????? | | ##T#T#######??????# #???# #??????????????????????? | | ?#####????????????# #???# #??????????????????????? | | ??????????????????# #???# #??????????????????????? | | ??????????????????# #???# #??????????????????????? | | ??????????????????# #???#*#??????????????????????? | | ??????????????????# #####%#??????????????????????? | | ??????????????????# %!!#??????????????????????? | | ??????????????????#######%#??????????????????????? | | ????????????????????????#R#??????????????????????? | | ???????????????????????##%#??????????????????????? | | ???????????????????????#%g#####?##???#???????????? | | ??????????????????????###=#;# ## ### ###?????????? | | ??????????????????????#[%* u "" ""#?????????? | | ????????????????????### ===Y Y " " #?????????? | | ????????????????????# # !%!% #?????????? | | ????????????????????? ;%[!! h #?????????? | | ????????############### ####??????? | | ??? h ??? | | ??? @%*BB ??? | | ??? % BBBB ??? | | ???? %%BB% ??? | | ???? u Rtk ???? | | ?????################## #######???? | | ??????????????????????# #?????????? | | ??????????????????????# #?????????? | | ??????????????????????# #?????????? | | ??????????????????????# #?????????? | | ??????????????????????######T#"""#######?????????? | | ????????????????????????????##???????????????????? | | ?????????????????????????????????????????????????? | | | | | | | | | | | | | | | | | | | | | | | | | | | +----------------------------------------------------+ Best States ------------- Heat Dissipation 56 Energy Generation 18 Energy Capacity 510 Matter Stores 300 Matter Capacity 300 Sight Range 22 Terrain Scan Density 10 Additional Mass Support 9 Armor Coverage 750 Evasion (%) 40 Targeting Accuracy 5 Recoil Reduction 4 Offensive Hacking 10 Item Schematics ----------------- Ripper | -6/Factory | Extrapolated Machine Rigger | -6/Factory | Extrapolated Beamcaster | -6/Factory | Extrapolated Robot Schematics ------------------ None Fabricated ------------ Nothing Repaired ---------- Nothing Alien Tech Used ----------------- None Achievements -------------- None Challenges ------------ None Game ------ Seed AuthchipScrapoidSuperbattery Manual? 0 Play Time 01:28:58 Cumulative 78.2 hours Start 2025.07.07 @ 12:14:36 End 2025.07.07 @ 13:55:00 Sessions 1 Manual Loads 0 Difficulty Rogue Special Mode None Game No. 88 Rogue 88 Adventurer 0 Explorer 0 Win Type - Total 2 Types 2/0/0/0/0/0/0/0/0/0 Lore% 49 Gallery% 43 Achievement% 40 Wizard Run 0 Options --------- Layout 0 ASCII 0 Keyboard 1 Movement Numpad Keybinds 0 Fullscreen 1 Font 24/Terminus Map View 76x50 Zoom Use 0% Tactical HUD 1 Map Filters NONE Filters NONE Steam 1 RUN: dde938e4-85d8-430f-a47e-ecddb190e207